Cogmind - Beta 17 @@@ ROGUE MODE // 2026.06.29 @ 19:49:32 Player: Dull Result: Destroyed by A8-1J4(R) with Subdweller Machine Gun Performance ------------- Evolutions (0) 0 Regions Visited (2) 400 Robots Destroyed (12) 60 Value Destroyed (122) 122 Prototype IDs (0) 0 Alien Tech Used (0) 0 Bonus (0) 0 TOTAL SCORE: 582 Bonus ------- None Cogmind --------- Core Integrity 0/250 Matter 193/300 Energy 90/250 System Corruption 5% Temperature Cool (0) Movement Treading (320) Ox2 Location -10/Subcaves Parts ------- > --- POWER (1) -------- Ion Engine > --- PROPULSION (2) --- Light Treads Light Treads > --- UTILITY (2) ------ Huge Storage Unit Makeshift Kinetic Plating > --- WEAPON (2) ------- Grenade Launcher > --- INVENTORY (25) --- Makeshift Power Source Light Treads Light Treads Light Treads Wheel Wheel Compact Wheel Heat Sink High-capacity Storage Unit Sensor Array Tractor Beam Beam Cannon Light Assault Rifle Light Assault Rifle Light Cannon Grenade Launcher Peak State ------------ > --- POWER ------------ Light Ion Engine > --- PROPULSION ------- Light Treads Light Treads > --- UTILITY ---------- Huge Storage Unit Makeshift Kinetic Plating > --- WEAPON ----------- Beam Cannon Light Assault Rifle > --- INVENTORY -------- Ion Engine Light Ion Engine Makeshift Power Source Light Treads Light Treads Light Treads Light Treads Wheel Wheel Compact Wheel Heat Sink High-capacity Storage Unit Sensor Array Tractor Beam Beam Cannon Light Assault Rifle Light Assault Rifle Light Cannon Grenade Launcher Grenade Launcher [Rating: 12] Favorites ----------- Power Light Ion Engine Engine Light Ion Engine Propulsion Light Treads Treads Light Treads Leg Aluminum Leg Utility Huge Storage Unit Storage Huge Storage Unit Protection Makeshift Kinetic Plating Weapon Light Assault Rifle Energy Gun Small Laser Energy Cannon Beam Cannon Ballistic Gun Light Assault Rifle Launcher Grenade Launcher Build | -11 -10 -10 ------- Run | Yrd Mat Sub Slots Evolved . | . . . Power . | . . . Propulsion . | . . . Utility . | . . . Weapon . | . . . Parts Attached 13 | . 9 4 Power 3 | . 1 2 Engine 3 | . 1 2 Core . | . . . Reactor . | . . . Propulsion 3 | . 2 1 Treads 3 | . 2 1 Leg . | . . . Wheel . | . . . Hover . | . . . Flight . | . . . Utility 2 | . 1 1 Device . | . . . Storage 1 | . 1 . Processor . | . . . Hackware . | . . . Protection 1 | . . 1 Artifact . | . . . Weapon 5 | . 5 . Energy Gun . | . . . Energy Cannon 2 | . 2 . Ballistic Gun 1 | . 1 . Ballistic Cannon . | . . . Launcher 2 | . 2 . Special Weapon . | . . . Impact Weapon . | . . . Slashing Weapon . | . . . Piercing Weapon . | . . . Special Melee Weapon . | . . . Unidentified Prototypes . | . . . Parts Lost 7 | . 2 5 Power 2 | . . 2 Propulsion 1 | . . 1 Utility . | . . . Weapon 4 | . 2 2 Highest Loss Streak 5 | . 2 5 To Critical Strikes . | . . . Average Backups 13 | . 13 19 Power 1 | . 1 2 Propulsion 5 | . 5 6 Utility 2 | . 2 4 Weapon 5 | . 5 6 Tool/Special . | . . . Unused Backups 20 | . 6 14 Power 2 | . 1 1 Propulsion 8 | . 2 6 Utility 5 | . 1 4 Weapon 5 | . 2 3 Tool/Special . | . . . Average Slot Usage (%) 85 | . 84 91 Engine 13 | . 14 13 Treads 26 | . 26 27 Leg 1 | . 1 . Storage 14 | . 14 14 Energy Cannon 13 | . 13 14 Ballistic Gun 13 | . 13 13 Peak Build Rating 12 | . 7 12 Average Rating 7 | . 6 9 On Entrance 6 | 6 6 7 Avg Prop Armor Cover (%) . | . . . Naked Turns . | . . . Heaviest Build 94 | 12 87 94 Greatest Support 40 | 20 40 40 Greatest Overweight (x) 2 | . 2 2 Average Overweight (x) 1 | . 1 2 Largest Inventory Capacity 25 | . 25 25 Average Capacity 21 | . 21 25 Most Carried 21 | . 19 21 Average Carried 13 | . 13 19 Final Capacity 25 | 8 25 25 Final Carried 19 | 6 19 16 Class Distribution -------------------- 100% | Mutant Dominant Class ---------------- Mutant | -10/Materials Mutant | -10/Subcaves Resources | -11 -10 -10 ----------- Run | Yrd Mat Sub Matter Collected 321 | 186 117 18 Remotely . | . . . Salvage Created 229 | . 229 . Parts 15 | . 15 . Haulers Intercepted 2 | . 2 . Recyclers Shooed . | . . . Parts Field Recycled . | . . . Retrieved Matter . | . . . Parts Self-Destructed 13 | . . 13 Prevented . | . . . Parts Restored . | . . . Kills | -11 -10 -10 ------- Run | Yrd Mat Sub Combat Hostiles Destroyed 7 | . 7 . Guns 1 | . 1 . Cannons 3 | . 3 . AOE 3 | . 3 . Classes Destroyed 3 | . 3 . Hauler 2 | . 2 . Watcher 3 | . 3 . Swarmer 7 | . 7 . Best Kill Streak 4 | . 4 . Combat Bots Only 3 | . 3 . Max Kills in Single Turn 3 | . 3 . Gunslinging . | . . . Exploded 3 | . 3 . Melee . | . . . Uniques/NPCs Destroyed . | . . . Combat | -11 -10 -10 -------- Run | Yrd Mat Sub Hostile Shots Fired 77 | . 53 24 Missed 17 | . 9 8 Hits 60 | . 44 16 Projectile 60 | . 44 16 AOE 10 | . 1 9 Damage Taken 1388 | . 467 921 Core 251 | . 76 175 Absorbed by Shields . | . . . Ignored by Resistances 74 | . . 74 Regen/Repaired (Parts) 64 | . 64 . Core Remaining (%) 100 | 100 . . Volleys Fired 50 | . 35 15 Largest 2 | . 2 1 Hottest 80 | . 80 60 Shots Fired 74 | . 61 13 Gun 34 | . 34 . Cannon 37 | . 25 12 Launcher 3 | . 2 1 Special . | . . . Kinetic 27 | . 27 . Thermal 44 | . 32 12 Explosive 3 | . 2 1 Electromagnetic . | . . . Robot Hit Streak 9 | . 9 5 Robot Miss Streak 3 | . 3 2 Penetration Max . | . . . Secondary Targets . | . . . Shots Hit Robots 37 | . 28 9 Core Hits 16 | . 14 2 Critical Kills . | . . . Critical Parts Destroyed . | . . . Critical Strikes . | . . . Melee Attacks . | . . . Impact . | . . . Slashing . | . . . Piercing . | . . . Sneak Attacks . | . . . Combat Hostiles . | . . . Follow-up Attacks . | . . . Damage Inflicted 774 | . 528 246 Guns 146 | . 146 . Cannons 423 | . 266 157 Explosions 205 | . 116 89 Melee . | . . . Ramming . | . . . Kinetic 91 | . 91 . Thermal 478 | . 321 157 Explosive 205 | . 116 89 Electromagnetic . | . . . Impact . | . . . Slashing . | . . . Piercing . | . . . Highest Corruption 5 | . 2 5 Average Corruption 1 | . 1 2 Corruption Purged . | . . . Corruption Blocked . | . . . Effects 20 | . 16 4 Message Errors 5 | . 5 . Matter Fused 4 | . 3 1 Energy Discharges 3 | . 3 . Data Loss (minor) 2 | . 2 . Misfires 3 | . 3 . Alerts 1 | . . 1 Weapon Failures 2 | . . 2 Overload Shots . | . . . Overflow Damage 14 | . 14 . Projectiles 14 | . 14 . Explosions . | . . . Melee . | . . . Knockbacks . | . . . Impact . | . . . Kinetic . | . . . Secondary . | . . . Self-Inflicted Damage . | . . . Shots . | . . . Rammed . | . . . Targets Rammed . | . . . Kicked . | . . . Crushed . | . . . Highest Temperature 180 | . 180 . Average Temperature 44 | . 44 . Received Heat Transfer 24 | . 18 6 Siege Activations . | . . . Martial Activations . | . . . Shielding Activations . | . . . Robots Disrupted . | . . . Combat Hostiles . | . . . Robots Corrupted . | . . . Combat Hostiles . | . . . Parts Fried . | . . . Impact Corruptions . | . . . Robots Melted . | . . . Combat Hostiles . | . . . Parts Melted . | . . . Heat Transferred 1013 | . 680 333 Parts Sabotaged . | . . . Parts Stolen . | . . . Parts Stripped . | . . . Power Chain Reactions . | . . . Alert | -11 -10 -10 ------- Run | Yrd Mat Sub Maximum Alert Level . | . . . Low Security (%) 100 | . 100 . Level 1 . | . . . Level 2 . | . . . Level 3 . | . . . Level 4 . | . . . Level 5 . | . . . High Security . | . . . Max Security . | . . . Peak Influence 81 | . 81 . Initial . | . . . Average 7 | . 7 . Influence Increases 228 | . 228 . Destroy 0b10 Robot/C 140 | . 140 . Destroy 0b10 Robot/NC 25 | . 25 . Destroy Leader 30 | . 30 . Successful Hack 13 | . 13 . Destroy Structure 20 | . 20 . Influence Decreases 228 | . 168 60 Entered New Map 29 | . . 29 Time Decay 189 | . 158 31 Lost Part 10 | . 10 . Squads Dispatched . | . . . Investigation . | . . . Extermination . | . . . Reinforcement . | . . . Assault . | . . . Garrison . | . . . Intercept . | . . . Searches Triggered . | . . . Construction Impeded . | . . . Haulers Reinforced . | . . . Active Scanning Responses . | . . . Cargo Convoy Interrupts . | . . . Stealth | -11 -10 -10 --------- Run | Yrd Mat Sub Distress Signals . | . . . Communications Jammed . | . . . Distress Signals . | . . . Times Spotted 23 | . 20 3 Peak Tracking Total 5 | . 5 3 Tactical Retreats . | . . . Traps | -11 -10 -10 ------- Run | Yrd Mat Sub Traps Triggered 2 | . 2 . Indirectly . | . . . Trap Hack Attempts . | . . . Triggered . | . . . Disarmed 1 | . 1 . Reprogrammed . | . . . Reused . | . . . Traps Extracted . | . . . Installed . | . . . Triggered . | . . . Machines | -11 -10 -10 ---------- Run | Yrd Mat Sub Machines Disabled . | . . . Max in Single Turn . | . . . Machines Repaired . | . . . Machines Dismantled . | . . . Machines Sabotaged . | . . . Overloaded Fab Kills . | . . . Hacking | -11 -10 -10 --------- Run | Yrd Mat Sub Machines Accessed 5 | . 5 . Terminals 4 | . 4 . Fabricators . | . . . Repair Stations 1 | . 1 . Recycling Units . | . . . Scanalyzers . | . . . Garrison Access . | . . . Total Hacks 9 | . 9 . Successful 7 | . 7 . Failed 2 | . 2 . Catastrophic . | . . . Database Lockouts . | . . . Manual . | . . . Terminals 7 | . 7 . Fabricators . | . . . Repair Stations 2 | . 2 . Recycling Units . | . . . Scanalyzers . | . . . Garrison Access . | . . . Terminal Hacks 5 | . 5 . Robot Analysis 1 | . 1 . Locate Traps 2 | . 2 . Disarm Traps 1 | . 1 . Zone Layout 1 | . 1 . Fabricator Hacks . | . . . Repair Station Hacks 2 | . 2 . Scan Component 1 | . 1 . Repair 1 | . 1 . Recycling Unit Hacks . | . . . Scanalyzer . | . . . Garrison Access Hacks . | . . . Unauthorized Hacks . | . . . Terminals . | . . . Fabricators . | . . . Repair Stations . | . . . Recycling Units . | . . . Scanalyzers . | . . . Garrison Access . | . . . Data Cores Recovered . | . . . Used . | . . . Hacking Detections 2 | . 2 . Full Trace Events . | . . . Feedback Events . | . . . Feedback Blocked . | . . . Robot Schematics Acquired . | . . . Robots Built . | . . . Authchips . | . . . Time . | . . . Total Robot Build Rating . | . . . Part Schematics Acquired . | . . . Parts Built . | . . . Authchips . | . . . Time . | . . . Total Part Build Rating . | . . . Part Studies Acquired . | . . . Parts Repaired 1 | . 1 . Time 26 | . 26 . Parts Recycled . | . . . Recycled Matter . | . . . Retrieved Matter . | . . . Retrieved Components . | . . . Parts Scanalyzed . | . . . Part Schematics Acquired . | . . . Parts Damaged . | . . . Bothacking | -11 -10 -10 ------------ Run | Yrd Mat Sub Used RIF Installer . | . . . Robots Hacked . | . . . Non-combat . | . . . Combat . | . . . Robot Hacks Applied . | . . . Relay Couplers Released . | . . . Fabnet Peak Effective % . | . . . Robots Rewired . | . . . Allies Hacked . | . . . Hacks Repelled . | . . . Allies | -11 -10 -10 -------- Run | Yrd Mat Sub Total Allies . | . . . Largest Group . | . . . Highest-Rated Group . | . . . Highest-Rated Ally . | . . . Total Orders . | . . . Ally Attacks . | . . . Total Damage . | . . . Kills . | . . . Allies Corrupted . | . . . Allies Melted . | . . . Intel | -11 -10 -10 ------- Run | Yrd Mat Sub Active Infowar (turns) . | . . . Robot Analysis Total 1 | . 1 . Derelict Logs Recovered . | . . . Drone Launches . | . . . Drone Recoveries . | . . . Exploration | -11 -10 -10 ------------- Run | Yrd Mat Sub Turns Passed 2204 | . 1961 243 Spaces Moved 697 | 1 636 60 Core . | . . . Treads 642 | . 582 60 Legs 55 | 1 54 . Wheels . | . . . Hover . | . . . Flight . | . . . Fastest Speed 120 | 120 120 320 Average Speed 272 | 120 268 320 Slowest Speed 320 | 120 320 320 Overloaded Moves . | . . . Propulsion Burnouts . | . . . Robots Hopped . | . . . Potential Cave-ins . | . . . Cave-ins Triggered 1 | . . 1 Exploration Rate (%) 35 | 2 98 5 Regions Visited 2 Branch Regions 1 Pre-discovered Areas . | . . . Known Exits Taken . | . . . Unknown Exits Taken 2 | 1 1 . Scrap Searched . | . . . Spaces Dug 7 | . 7 . Terrain Destroyed 20 | . 17 3 Melee . | . . . Projectile . | . . . AOE 20 | . 17 3 Terrain Rammed . | . . . Walls Destroyed . | . . . Machines Disabled . | . . . Actions | -11 -10 -10 --------- Run | Yrd Mat Sub Total 934 | . 837 97 Wait 151 | . 136 15 Move 695 | . 635 60 Hop . | . . . Pick Up 17 | . 15 2 Fast Attach 5 | . 5 . Attach 6 | . 1 5 Detach . | . . . Swap 6 | . 6 . Drop 4 | . 4 . Fire 50 | . 35 15 Melee . | . . . Ram . | . . . Kick . | . . . Crush . | . . . Escape Stasis . | . . . Rewire . | . . . Trap . | . . . Miscellaneous . | . . . Route ------- -11/Scrapyard -10/Materials (discovered 6 exits: [*Mat x3] / [*Min x2] / [*Sub]) -10/Subcaves History --------- Turn | Location | Event 1 | -11/Scrapyard | Discovered new exit (range 0) 1 | -11/Scrapyard | Entered Materials 221 | -10/Materials | Discovered new exit (range 9) 268 | -10/Materials | Repaired Beam Cannon 300 | -10/Materials | Discovered new exit (range 5) 308 | -10/Materials | Build established: Mutant 496 | -10/Materials | Discovered new exit (range 8) 716 | -10/Materials | Discovered new exit (range 18) 980 | -10/Materials | Discovered new exit (range 15) 1936 | -10/Materials | Discovered new exit (range 9) 1962 | -10/Materials | Entered Subcaves 1963 | -10/Subcaves | Approached by a straggling Scientist 2041 | -10/Subcaves | Shifting Twisted Machinery released Mak. Power Source 2041 | -10/Subcaves | Shifting Twisted Machinery released Mak. Kinetic Plating 2173 | -10/Subcaves | Ambushed by Subdweller buried in earth 2202 | -10/Subcaves | Crushed by falling debris 2202 | -10/Subcaves | Core integrity fell below 50% 2204 | -10/Subcaves | Core integrity fell below 20% 2205 | -10/Subcaves | Destroyed by A8-1J4(R) with Subdweller Machine Gun Last Messages --------------- here" G1-TQD(c): "I think it's somewhere east of here" 02171_ G1-TQD(c) destroyed. 02173_ Lgt. Ion Engine destroyed. [Achievement: Do Not Disturb] 02174_ 0L-4GR(R): "ARGHSUB!" 02175_ Lgt. Treads destroyed. 02178_ 0L-4GR(R) destroyed. 02182_ Subatomizers dissect the Sub. Monowheel. 02183_ System corrupted: Beam Cannon failed to cycle. 02189_ The unstable cave ceiling collapses. 02189_ Acquired 18 matter. 02192_ Lgt. Assault Rifle destroyed. 02202_ The unstable cave ceiling collapses. 02202_ Crushed by falling debris. 02202_ Beam Cannon destroyed. 02202_ System corrupted by crushing effect (+2). 02202_ Lgt. Ion Engine destroyed. 02202_ System corrupted by crushing effect (+1). Map ----- +----------------------------------------------------+ | ????????????????# #?# #?????????????????? | | ????????????????## #### ##????????????????? | | ????????????????## ### #????????????????? | | ????????????????# # # #????????????????? | | ????????????????# #????????????????? | | ????????????????# ## #????????????????? | | ????????????????# ### #""#????????????????? | | ????????????????# # ### #????????????????? | | ????????????????## #?##????????????????? | | ????????????????## # ###???????????????????? | | ????????????????# ###?????????????????????? | | ????????????????## ##???????????????????????? | | ???????????????## ##??????????????????????? | | ???????????????# #??????????????????????? | | ???????????????# #??????????????????????? | | ???????????????# ####???????????????????? | | ???????????????# ##??????????????????? | | ??????????????##### ##?????????????????? | | ?????????????## ;; #?????????????????? | | ?????????????# ; #?????????????????? | | ?????????????# ;#?????????????????? | | ?????????????# #?????????????????? | | ?????????????#; #?????????????????? | | ?????????????#; #?????????????????? | | ??????????????# ] #?????????????????? | | ??????????????## @ #?????????????????? | | ??????????????# #????????????????? | | ??????????????# #????????????????? | | ??????????????# R #????????????????? | | ??????????????# R #???????????????? | | ??????????????####### ??????????????? | | ????????????????????## ##?????????????? | | ?????????????????????? #??????????????? | | ?????????????????????? ####??????????????? | | ?????????????????????? ##?????????????????? | | ?????????????????????? #??????????????????? | | ?????????????????????? ??????????????????? | | ??????????????????????# ??????????????????? | | ??????????????????????? ?????????????????? | | ???????????????????????# ???????????????????? | | ????????????????????????????????????????????? | | ????????????????????????????????????????????? | | ????????????????????????????????????????????? | | ????????????????????????????????????????????? | | ????????????????????????????????????????????? | | ????????????????????????????????????????????? | | ????????????????????????????????????????????? | | ????????????????????????????????????????????? | | ????????????????????????????????????????????? | | ????????????????????????????????????????????? | +----------------------------------------------------+ Best States ------------- Heat Dissipation 25 Energy Generation 10 Energy Capacity 250 Matter Stores 300 Matter Capacity 300 Sight Range 16 Terrain Scan Density 10 Armor Coverage 100 Resistance: KI 10 Evasion (%) 55 Recoil Reduction 2 Item Schematics ----------------- None Robot Schematics ------------------ None Fabricated ------------ Nothing Repaired ---------- Beam Cannon | 36% | -10/Materials Studied --------- None Alien Tech Used ----------------- None Achievements -------------- Do Not Disturb Challenges ------------ None Game ------ Seed AntimatterPlatingReplicator Manual? 0 Play Time 00:10:20 Cumulative 153.0 hours Start 2026.06.29 @ 19:40:17 End 2026.06.29 @ 19:49:32 Sessions 1 Manual Loads 0 Difficulty Rogue Special Mode None Game No. 209 Rogue 209 Adventurer 0 Explorer 0 Win Type - Total 1 Types 1/0/0/0/0/0/0/0/0/0 Lore% 49 Gallery% 53 Achievement% 30 Wizard Run 0 Options --------- Layout 1 ASCII 0 Keyboard 0 Movement Mouse Keybinds 1 Fullscreen 1 Font 24/Smallcaps Map View 50x35 Zoom Use 0% Tactical HUD 1 Map Filters NONE Filters NONE Steam 1 RUN: afd334a4-16db-4cdc-9322-57c7d0f2e5e7